bitfinex-derivatives/quotes_BTCF0:USTF0_20241227
["timestamp","ask_amount","ask_price","bid_price","bid_amount"]
[1735294467130,0.20627467,96786.0,96785.0,0.19330559]
[1735294468223,0.051724,96786.0,96785.0,0.00709433]
[1735294470029,0.051724,96786.0,96785.0,0.00850186]
[1735294473028,0.10202514,96786.0,96785.0,0.00850186]
[1735294477161,0.10202514,96786.0,96785.0,0.00991526]
[1735294480056,0.051724,96786.0,96785.0,0.00991526]
[1735294481255,0.051724,96786.0,96785.0,0.19604127]
[1735294482769,0.051724,96786.0,96785.0,0.00991526]
[1735294482969,0.051724,96786.0,96785.0,0.01132866]
[1735294484861,0.051724,96786.0,96785.0,0.19747552]
[1735294486765,0.20636131,96786.0,96785.0,0.01132866]
[1735294487865,0.10202807,96786.0,96785.0,0.01132866]
[1735294489567,0.051724,96786.0,96785.0,0.01132866]
[1735294490873,0.10202807,96786.0,96785.0,0.01132866]
[1735294492177,0.28761595,96786.0,96785.0,0.01132866]
[1735294493473,0.10202807,96786.0,96785.0,0.01132866]
[1735294494973,0.051724,96786.0,96785.0,0.19747552]
[1735294497671,0.05030445,96786.0,96785.0,0.19747552]
[1735294498879,0.12376359,96787.0,96785.0,0.01132866]
[1735294499271,0.12376359,96787.0,96786.0,1.5]
[1735294499873,0.12376359,96789.0,96786.0,1.75850159]
[1735294500878,0.21435579,96811.0,96787.0,0.051723]
[1735294501072,0.21435579,96811.0,96809.0,0.051711]
[1735294501273,0.16445579,96813.0,96811.0,0.051711]
[1735294502077,0.16445579,96813.0,96812.0,0.01032866]
[1735294502578,0.17345579,96813.0,96812.0,0.01032866]
[1735294502981,0.009,96813.0,96812.0,0.01032866]
[1735294503577,0.009,96813.0,96812.0,0.01132866]
[1735294503777,0.014,96813.0,96812.0,0.06303866]
[1735294504384,0.009,96813.0,96812.0,0.06303866]
[1735294504685,0.014,96813.0,96812.0,0.06303866]
[1735294507375,0.051703,96825.0,96812.0,0.06303866]
[1735294507784,0.051703,96825.0,96813.0,1.5]
[1735294508080,0.051703,96825.0,96819.0,0.01032866]
[1735294508280,0.051704,96824.0,96819.0,0.01032866]
[1735294508485,0.001,96825.0,96819.0,0.01032866]
[1735294508692,0.003,96825.0,96819.0,0.01032866]
[1735294509072,0.003,96825.0,96816.0,0.18530838]
[1735294509073,0.04137834,96818.0,96816.0,0.18530838]
[1735294509790,0.04137834,96818.0,96801.0,0.0318]
[1735294510383,0.04137834,96818.0,96805.0,0.051713]
[1735294510980,0.04637834,96818.0,96805.0,0.051713]
[1735294511576,0.005,96818.0,96805.0,0.051713]
[1735294511981,0.051709,96815.0,96805.0,0.051713]
[1735294513491,0.09237348,96816.0,96805.0,0.051713]
[1735294513692,0.051709,96814.0,96805.0,0.051713]
[1735294514188,0.09237348,96816.0,96805.0,0.051713]
[1735294514391,0.05171,96813.0,96805.0,0.051713]
[1735294514581,0.05171,96813.0,96806.0,1.5]
[1735294515792,0.09237348,96815.0,96806.0,1.5]
[1735294515990,0.09237348,96815.0,96801.0,0.0318]
[1735294515991,0.051716,96801.0,96798.0,0.051718]
[1735294517181,0.051716,96801.0,96798.0,0.054718]
[1735294517387,0.051716,96801.0,96798.0,0.055718]
[1735294517594,0.051716,96801.0,96800.0,0.051717]
[1735294517807,0.051713,96808.0,96800.0,0.051717]
[1735294517994,0.051713,96807.0,96805.0,0.051713]
[1735294518795,0.051708,96816.0,96808.0,0.051712]
[1735294519297,0.05171,96813.0,96808.0,0.051712]
[1735294519484,0.05171,96813.0,96809.0,1.5]
[1735294520488,0.05371,96813.0,96809.0,1.5]
[1735294520690,0.05471,96813.0,96809.0,1.68530838]
[1735294521984,0.05271,96813.0,96810.0,0.18530838]
[1735294522191,0.003,96813.0,96810.0,0.18530838]
[1735294522889,0.002,96813.0,96810.0,0.18530838]
[1735294523201,0.003,96813.0,96810.0,0.18530838]
[1735294523500,0.003,96813.0,96811.0,0.05171]
[1735294524990,0.001,96813.0,96812.0,1.5]
[1735294525307,0.004,96813.0,96812.0,1.5]
[1735294527697,0.0309,96824.0,96812.0,1.5]
[1735294528005,0.09237348,96823.0,96821.0,0.051705]
[1735294529497,0.09237348,96826.0,96821.0,0.001]
[1735294529697,0.09237348,96826.0,96825.0,0.051703]
[1735294530307,0.09237348,96826.0,96825.0,1.551703]
[1735294530703,0.18494164,96848.0,96825.0,1.5]
[1735294531008,0.051693,96844.0,96833.0,0.051698]
[1735294531198,0.051693,96844.0,96825.0,1.51060336]
[1735294531400,0.051693,96844.0,96837.0,0.051697]
[1735294531905,0.18494164,96848.0,96841.0,0.051694]
[1735294532205,0.0639,96849.0,96830.0,0.10261048]
[1735294532206,0.0639,96849.0,96846.0,0.051692]
[1735294532403,0.0639,96849.0,96848.0,0.051691]
[1735294533307,0.0639,96849.0,96843.0,0.24783484]
[1735294533502,0.0639,96849.0,96848.0,0.24783484]
[1735294534100,0.0639,96849.0,96848.0,0.24983484]
[1735294534503,0.0639,96849.0,96848.0,0.25383484]
[1735294534895,0.0639,96849.0,96848.0,0.006]
[1735294535299,0.0639,96849.0,96848.0,0.057691]
[1735294536807,0.0327,96861.0,96848.0,0.006]
[1735294537007,0.00154947,96862.0,96861.0,0.051684]
[1735294537512,0.00154947,96862.0,96850.0,0.10261048]
[1735294537513,0.0329,96869.0,96866.0,0.051681]
[1735294537696,0.04340489,96869.0,96866.0,0.051681]
[1735294539408,0.04340489,96869.0,96866.0,0.055681]
[1735294539612,0.04340489,96869.0,96866.0,0.057681]
[1735294541009,0.04340489,96869.0,96866.0,0.006]
[1735294541710,0.0329,96869.0,96866.0,0.006]
[1735294543009,0.05168,96868.0,96866.0,0.004]
[1735294543905,0.05168,96868.0,96854.0,0.051687]
[1735294544325,0.05168,96868.0,96857.0,0.051686]
[1735294544808,0.0349,96869.0,96857.0,0.051686]
[1735294545007,0.051682,96866.0,96857.0,0.051686]
[1735294545403,0.051682,96865.0,96857.0,0.051686]
[1735294545607,0.0339,96869.0,96857.0,0.001]
[1735294545915,0.0329,96869.0,96868.0,0.05168]
[1735294546118,0.01052725,96871.0,96868.0,0.05168]
[1735294546317,0.0301,96872.0,96868.0,0.05168]
[1735294546708,0.0301,96872.0,96869.0,1.5]
[1735294547706,0.04052155,96872.0,96869.0,1.5]
[1735294547903,0.04052155,96872.0,96870.0,0.051679]
[1735294548307,0.04152155,96872.0,96870.0,0.051679]
[1735294548818,0.04052155,96872.0,96870.0,0.051679]
[1735294549014,0.0321,96872.0,96870.0,0.051679]
[1735294549608,0.0311,96872.0,96870.0,0.051679]
[1735294549814,0.0321,96872.0,96870.0,0.051679]
[1735294550117,0.051664,96899.0,96869.0,1.50056]
[1735294550322,0.0645,96899.0,96898.0,0.051664]
[1735294550510,0.15474685,96905.0,96898.0,0.051664]
[1735294551008,0.15474685,96905.0,96899.0,1.5]
[1735294551208,0.11019546,96900.0,96899.0,1.5]
[1735294551410,0.1,96900.0,96899.0,1.5]
[1735294552019,0.1,96900.0,96899.0,0.001]
[1735294552315,0.101,96900.0,96899.0,0.001]
[1735294553508,0.11151562,96900.0,96899.0,0.001]
[1735294554317,0.16317962,96900.0,96899.0,0.001]
[1735294555019,0.051667,96894.0,96885.0,0.18523107]
[1735294555214,0.11151562,96900.0,96885.0,0.18523107]
[1735294555215,0.0646,96893.0,96885.0,0.18523107]
[1735294555620,0.0646,96893.0,96891.0,0.051668]
[1735294557521,0.001,96894.0,96885.0,1.50052]
[1735294557829,0.11051562,96900.0,96899.0,0.051664]
[1735294557830,0.1,96900.0,96899.0,0.051664]
[1735294558219,0.01038293,96918.0,96915.0,0.051656]
[1735294558916,0.15474685,96921.0,96915.0,0.051656]
[1735294559225,0.15474685,96921.0,96920.0,0.051653]
[1735294559424,0.15474685,96943.0,96932.0,0.051646]
[1735294559615,0.051642,96942.0,96932.0,0.051646]
[1735294560018,0.051642,96942.0,96933.0,0.051646]
[1735294560926,0.1652054,96943.0,96930.0,0.10261048]
[1735294561322,0.01045855,96943.0,96938.0,0.051643]
[1735294561521,0.149437,96950.0,96938.0,0.051643]
[1735294562124,0.051639,96947.0,96938.0,0.051643]
[1735294562436,0.0978,96950.0,96940.0,0.051642]
[1735294562630,0.01054868,96950.0,96940.0,0.10261048]
[1735294562837,0.15474685,96966.0,96940.0,0.10261048]
[1735294562838,0.0638,96965.0,96940.0,0.10261048]
[1735294563033,0.0638,96965.0,96941.0,0.0314]
[1735294563233,0.12304227,96963.0,96950.0,0.10261048]
[1735294563529,0.12304227,96963.0,96943.0,0.051641]
[1735294563735,0.12304227,96963.0,96941.0,0.0314]
[1735294563924,0.12304227,96963.0,96958.0,0.051632]
[1735294564236,0.12304227,96963.0,96962.0,0.051631]
[1735294564732,0.01011352,96971.0,96970.0,0.051626]
[1735294564933,0.12304227,96986.0,96970.0,1.5]
[1735294565128,0.12304227,96986.0,96970.0,1.60261048]
[1735294565330,0.13350782,96986.0,96970.0,1.5]
[1735294565534,0.13350782,96986.0,96950.0,0.10261048]
[1735294565535,0.10261048,96980.0,96950.0,0.10261048]
[1735294565837,0.13350782,96986.0,96962.0,0.002]
[1735294566134,0.13350782,96986.0,96970.0,0.10261048]
[1735294566335,0.01046555,96986.0,96963.0,1.5]
[1735294566525,0.10261048,96990.0,96963.0,1.50052]
[1735294566733,0.0301,96997.0,96970.0,0.10261048]
[1735294567237,0.0301,96997.0,96980.0,0.10261048]
[1735294567438,0.04050756,96997.0,96980.0,0.10261048]
[1735294567637,0.01040756,96997.0,96987.0,0.10261048]
[1735294567941,0.1,97000.0,96987.0,0.10261048]
[1735294568126,0.1,97000.0,96990.0,0.10261048]
[1735294568334,0.12304227,97011.0,96991.0,0.0637]
[1735294568634,0.12304227,97011.0,97001.0,0.10261048]
[1735294569023,0.15474685,97017.0,97001.0,0.50522096]
[1735294569339,0.01,97114.0,97001.0,0.50522096]
[1735294569340,0.0305,97049.0,97007.0,0.20522096]
[1735294569533,0.0305,97049.0,97001.0,0.3]
[1735294569534,0.05758761,97041.0,97014.0,0.20522096]
[1735294569735,0.0309,97053.0,97031.0,0.10261048]
[1735294569940,0.10261048,97041.0,97015.0,0.34688]
[1735294570238,0.063,97040.0,97020.0,0.10261048]
[1735294570540,0.063,97040.0,97015.0,0.34688]
[1735294570541,0.16561048,97040.0,97015.0,0.34688]
[1735294571132,0.16561048,97040.0,97015.0,0.35488]
[1735294571836,0.10261048,97030.0,97015.0,0.35788]
[1735294572341,0.063,97040.0,97015.0,0.35788]
[1735294572342,0.16561048,97040.0,97015.0,0.35788]
[1735294572530,0.16561048,97040.0,97015.0,0.34688]
[1735294572730,0.16561048,97040.0,97020.0,0.006]
[1735294573134,0.16561048,97040.0,97015.0,0.34988]
[1735294573334,0.17573478,97040.0,97015.0,0.35788]
[1735294573732,0.10261048,97030.0,97015.0,0.34988]
[1735294574037,0.10261048,97030.0,97020.0,0.005]
[1735294574236,0.20522096,97030.0,96989.0,0.18523107]
[1735294574437,0.10261048,97020.0,96989.0,0.18523107]
[1735294574633,0.01050605,97030.0,97000.0,0.10261048]
[1735294574832,0.10261048,97030.0,97000.0,0.10261048]
[1735294575027,0.10261048,97030.0,97015.0,0.003]
[1735294575539,0.17644335,97040.0,97015.0,0.003]
[1735294575739,0.07383287,97040.0,97020.0,0.10261048]
[1735294575930,0.063,97040.0,97030.0,0.10261048]
[1735294576239,0.34748,97088.0,97030.0,0.10261048]
[1735294576240,0.10261048,97070.0,97030.0,0.10261048]
[1735294576431,0.0647,97066.0,97040.0,0.10261048]
[1735294577844,0.0647,97066.0,97040.0,0.10661048]
[1735294578239,0.0647,97066.0,97040.0,0.004]
[1735294578744,0.00013977,97053.0,97040.0,0.15912766]
[1735294579441,0.00013977,97053.0,97040.0,0.16112766]
[1735294579838,0.00013977,97053.0,97040.0,0.15512766]
[1735294580145,0.00413977,97053.0,97040.0,0.15512766]
[1735294580343,0.00613977,97053.0,97040.0,0.15312766]
[1735294580542,0.00613977,97053.0,97032.0,0.00052]
[1735294580739,0.00598492,97053.0,97024.0,0.18523107]
[1735294580940,0.00598492,97053.0,97030.0,0.15312766]
[1735294581144,0.00598492,97053.0,97040.0,0.15312766]
[1735294581536,0.00398492,97053.0,97040.0,0.15312766]
[1735294581737,0.00398492,97053.0,97030.0,0.15312766]
[1735294582150,0.01041955,97059.0,97030.0,0.15312766]
[1735294582353,0.0328,97066.0,97030.0,0.15312766]
[1735294582546,0.15312766,97060.0,97025.0,1.50052]
[1735294582745,0.15312766,97060.0,97025.0,1.5]
[1735294582945,0.0328,97066.0,97025.0,1.5]
[1735294583145,0.0328,97066.0,97030.0,0.15312766]
[1735294583946,0.002,97053.0,97030.0,0.15312766]
[1735294584146,0.002,97053.0,97030.0,0.16212766]
[1735294584848,0.002,97053.0,97040.0,0.15312766]
[1735294585254,0.04337116,97066.0,97040.0,0.15312766]
[1735294585942,0.04337116,97066.0,97040.0,0.45312766]
[1735294586345,0.0328,97066.0,97040.0,0.45312766]
[1735294586540,0.0328,97066.0,97041.0,1.5]
[1735294587041,0.0328,97066.0,97041.0,1.8]
[1735294587253,0.0328,97066.0,97050.0,0.15312766]
[1735294587653,0.001,97053.0,97050.0,0.15312766]
[1735294587854,0.001,97053.0,97041.0,1.50052]
[1735294588155,0.001,97053.0,97041.0,1.5]
[1735294588351,0.0328,97066.0,97041.0,1.5]
[1735294588653,0.0358,97066.0,97041.0,1.5]
[1735294589252,0.002,97053.0,97041.0,1.5]
[1735294590649,0.0104668,97062.0,97041.0,1.5]
[1735294590850,0.15312766,97060.0,97041.0,1.5]
[1735294591040,0.15312766,97060.0,97033.0,0.18523107]
[1735294591444,0.15312766,97050.0,97034.0,1.5]
[1735294591644,0.15312766,97050.0,97033.0,0.18523107]
[1735294592049,0.15312766,97050.0,97024.0,0.18523107]
[1735294592547,0.15312766,97040.0,97033.0,0.001]
[1735294592748,0.0923,97039.0,97024.0,0.18523107]
[1735294592953,0.0923,97039.0,97033.0,0.001]
[1735294593253,0.3923,97039.0,97024.0,0.03553107]
[1735294593752,0.3923,97039.0,97024.0,0.03953107]
[1735294594054,0.3923,97039.0,97024.0,0.04053107]
[1735294594551,0.3923,97039.0,97024.0,0.03953107]
[1735294594757,0.0923,97039.0,97024.0,0.04053107]
[1735294594961,0.10308906,97039.0,97024.0,0.04053107]
[1735294595148,0.10308906,97039.0,97024.0,0.001]
[1735294595857,0.10308906,97039.0,97024.0,0.004]
[1735294596859,0.10308906,97039.0,97025.0,0.24783484]
[1735294597060,0.07138906,97039.0,97025.0,0.24783484]
[1735294597653,0.07138906,97039.0,97026.0,1.5]
[1735294598052,0.0304,97038.0,97025.0,0.24883484]
[1735294598456,0.0304,97038.0,97036.0,0.24783484]
[1735294598766,0.0304,97038.0,97036.0,0.04823484]
[1735294598950,0.3304,97038.0,97036.0,0.04823484]
[1735294599151,0.3304,97038.0,97027.0,0.30767835]
[1735294599560,0.3324,97038.0,97027.0,0.11826287]
[1735294599753,0.3324,97038.0,97018.0,0.3371232]
[1735294599962,0.15312766,97028.0,97015.0,0.55773427]
[1735294600358,0.45312766,97028.0,97015.0,0.55773427]
[1735294600663,0.45312766,97028.0,97015.0,0.30773427]
[1735294601364,0.15401778,97022.0,96994.0,1.50052]
[1735294601553,0.15312766,97010.0,96975.0,0.01057334]
[1735294601750,0.15312766,97000.0,96960.0,0.15312766]
[1735294601955,0.15312766,97010.0,96960.0,0.15312766]
[1735294602155,0.15312766,97000.0,96989.0,1.5]
[1735294602464,0.15312766,97010.0,96989.0,1.5]
[1735294602763,0.15312766,97010.0,96960.0,0.15312766]
[1735294602965,0.15312766,97010.0,96988.0,0.073]
[1735294603466,0.15312766,97010.0,96988.0,0.009]
[1735294603467,0.15312766,97000.0,96988.0,0.009]
[1735294603859,0.45312766,97000.0,96989.0,0.007]
[1735294604565,0.45312766,97000.0,96988.0,0.009]
[1735294604955,0.15401778,96997.0,96989.0,0.009]
[1735294605357,0.45401778,96997.0,96989.0,0.009]
[1735294605565,0.45401778,96997.0,96975.0,0.0301]
[1735294606266,0.15312766,96990.0,96975.0,0.0301]
[1735294606966,0.15312766,96990.0,96975.0,0.0351]
[1735294607759,0.15312766,96990.0,96987.0,0.006]
[1735294608253,0.15312766,96990.0,96975.0,0.0401]
[1735294608759,0.15312766,96990.0,96975.0,0.0351]
[1735294609062,0.15412766,96990.0,96975.0,0.0351]
[1735294609261,0.15412766,96990.0,96975.0,0.0321]
[1735294609462,0.15312766,96990.0,96975.0,0.0321]
[1735294609663,0.16394908,96990.0,96975.0,0.0321]
[1735294610065,0.16394908,96990.0,96975.0,0.0301]
[1735294610272,0.1130816,96990.0,96975.0,0.0301]
[1735294610569,0.1130816,96990.0,96976.0,1.5]
[1735294611871,0.1130816,96990.0,96976.0,1.5322]
[1735294612072,0.1150816,96990.0,96976.0,1.5322]
[1735294612566,0.1160816,96990.0,96976.0,1.5322]
[1735294613167,0.1160816,96990.0,96976.0,0.0322]
[1735294614274,0.51834178,96990.0,96975.0,0.0301]
[1735294614574,0.51834178,96990.0,96955.0,0.0322]
[1735294614763,0.10226018,96964.0,96955.0,0.0631]
[1735294615769,0.10226018,96964.0,96955.0,0.0681]
[1735294616474,0.10226018,96964.0,96955.0,0.0359]
[1735294616967,0.10226018,96964.0,96955.0,0.0379]
[1735294617877,0.10226018,96964.0,96955.0,0.0359]
[1735294618269,0.10226018,96964.0,96955.0,0.0339]
[1735294618667,0.10226018,96964.0,96955.0,0.0319]
[1735294618872,0.11303127,96964.0,96955.0,0.0319]
[1735294622669,0.11303127,96964.0,96955.0,0.001]
[1735294622882,0.41303127,96964.0,96955.0,0.001]
[1735294623084,0.44563127,96964.0,96941.0,0.0318]
[1735294623280,0.10226018,96951.0,96941.0,0.0318]
[1735294624475,0.10226018,96951.0,96941.0,0.0378]
[1735294624882,0.10226018,96951.0,96941.0,0.0348]
[1735294625187,0.10226018,96951.0,96941.0,0.0398]
[1735294625586,0.10226018,96951.0,96941.0,0.0388]
[1735294627784,0.40226018,96951.0,96941.0,0.007]
[1735294628082,0.41312249,96951.0,96924.0,0.0657]
[1735294628291,0.10226018,96930.0,96924.0,0.0657]
[1735294628478,0.10226018,96934.0,96924.0,0.0657]
[1735294628981,0.10226018,96934.0,96925.0,1.5]
[1735294629889,0.12299438,96945.0,96925.0,1.5]
[1735294630092,0.07309438,96945.0,96930.0,0.10226018]
[1735294630395,0.003,96951.0,96930.0,0.10226018]
[1735294630594,0.15401778,96953.0,96940.0,0.10226018]
[1735294630789,0.15401778,96969.0,96930.0,0.40226018]
[1735294631685,0.10226018,96960.0,96930.0,0.40226018]
[1735294631882,0.006,96953.0,96940.0,0.001]
[1735294633287,0.006,96953.0,96940.0,0.003]
[1735294633487,0.10226018,96950.0,96940.0,0.003]
[1735294634193,0.10226018,96950.0,96940.0,0.002]
[1735294634782,0.10226018,96950.0,96940.0,0.007]
[1735294635576,0.10226018,96950.0,96940.0,0.006]
[1735294637283,0.10226018,96950.0,96940.0,0.005]
[1735294637881,0.10226018,96950.0,96926.0,0.0322]
[1735294638090,0.10226018,96940.0,96926.0,0.0322]
[1735294639194,0.10226018,96940.0,96926.0,0.0382]
[1735294639696,0.10226018,96940.0,96926.0,0.0402]
[1735294640695,0.10326018,96940.0,96926.0,0.0402]
[1735294641188,0.10226018,96936.0,96926.0,0.002]
[1735294641384,0.10226018,96936.0,96926.0,0.008]
[1735294641883,0.10226018,96936.0,96926.0,0.006]
[1735294642093,0.10226018,96936.0,96926.0,0.008]
[1735294642485,0.1136562,96940.0,96926.0,0.008]
[1735294642799,0.10226018,96936.0,96926.0,0.007]
[1735294643393,0.064,96935.0,96926.0,0.007]
[1735294643793,0.064,96935.0,96926.0,0.001]
[1735294643995,0.064,96935.0,96926.0,0.004]
[1735294644400,0.064,96935.0,96926.0,0.001]
[1735294644693,0.064,96935.0,96926.0,0.002]
[1735294645088,0.064,96935.0,96926.0,0.001]
[1735294649398,0.031,96935.0,96926.0,0.001]
[1735294649599,0.1126562,96940.0,96926.0,0.001]
[1735294650302,0.10226018,96936.0,96908.0,1.5307]
[1735294650494,0.10226018,96918.0,96908.0,0.0307]
[1735294651900,0.10226018,96918.0,96908.0,0.0337]
[1735294652300,0.10326018,96918.0,96908.0,0.0417]
[1735294653594,0.10326018,96918.0,96908.0,0.0407]
[1735294653898,0.10326018,96918.0,96908.0,0.0387]
[1735294654200,0.10326018,96918.0,96908.0,0.008]
[1735294654498,0.0926232,96916.0,96895.0,0.0307]
[1735294654700,0.20452036,96900.0,96889.0,1.50052]
[1735294654895,0.20452036,96900.0,96889.0,1.5]
[1735294655096,0.10226018,96900.0,96889.0,1.5]
[1735294655600,0.20452036,96900.0,96889.0,1.5]
[1735294656301,0.20444906,96900.0,96885.0,0.033]
[1735294656800,0.20544906,96900.0,96895.0,0.003]
[1735294657487,0.20544906,96900.0,96889.0,0.008]
[1735294658098,0.20544906,96900.0,96887.0,0.0301]
[1735294658099,0.20544906,96900.0,96895.0,0.003]
[1735294658698,0.10326018,96900.0,96895.0,0.003]
[1735294659097,0.11384588,96900.0,96895.0,0.003]
[1735294659393,0.0115857,96900.0,96895.0,0.005]
[1735294659603,0.0105857,96900.0,96895.0,0.002]
[1735294659798,0.001,96900.0,96895.0,0.002]
[1735294660191,0.10226018,96905.0,96887.0,0.0301]
[1735294660408,0.10226018,96897.0,96895.0,0.007]
[1735294660606,0.2152713,96905.0,96895.0,0.007]
[1735294661304,0.2152713,96905.0,96895.0,0.005]
[1735294661496,0.2162713,96905.0,96887.0,0.0411]
[1735294661803,0.10226018,96897.0,96887.0,0.0411]
[1735294662901,0.10226018,96897.0,96895.0,0.001]
[1735294663103,0.11301112,96905.0,96895.0,0.005]
[1735294663501,0.2152713,96905.0,96895.0,0.001]
[1735294663700,0.001,96897.0,96887.0,0.0401]
[1735294663895,0.10326018,96897.0,96887.0,0.0401]
[1735294664103,0.0328,96896.0,96887.0,0.003]
[1735294664291,0.0328,96896.0,96895.0,0.004]
[1735294664494,0.0328,96896.0,96876.0,0.03154799]
[1735294664701,0.10226018,96886.0,96875.0,0.24652816]
[1735294664900,0.10226018,96886.0,96865.0,0.0309]
[1735294664901,0.0301,96885.0,96876.0,0.24652816]
[1735294666307,0.0926232,96884.0,96865.0,0.0309]
[1735294666510,0.10226018,96875.0,96865.0,0.0309]
[1735294667398,0.10226018,96875.0,96865.0,0.0359]
[1735294667598,0.10226018,96875.0,96865.0,0.0389]
[1735294667914,0.10226018,96875.0,96865.0,0.0339]
[1735294668109,0.10326018,96875.0,96865.0,0.0359]
[1735294669104,0.001,96875.0,96865.0,0.0359]
[1735294669410,0.10226018,96880.0,96865.0,0.0319]
[1735294669712,0.10226018,96880.0,96877.0,1.5]
[1735294670004,0.10308003,96885.0,96878.0,0.0319]
[1735294670206,0.01045683,96885.0,96878.0,0.0319]
[1735294670407,0.10226018,96887.0,96878.0,0.0319]
[1735294670905,0.002,96880.0,96878.0,0.0319]
[1735294672510,0.003,96885.0,96878.0,0.0319]
[1735294672710,0.004,96885.0,96878.0,0.0319]
[1735294673098,0.001,96885.0,96878.0,0.0319]
[1735294673409,0.11287681,96887.0,96878.0,0.0319]
[1735294673606,0.11287681,96887.0,96865.0,0.0309]
[1735294673812,0.10226018,96875.0,96865.0,0.0309]
[1735294676002,0.10326018,96875.0,96865.0,0.0379]
[1735294679106,0.11388943,96875.0,96865.0,0.0379]
[1735294681313,0.21614961,96875.0,96865.0,0.007]
[1735294681611,0.0311,96874.0,96865.0,0.007]
[1735294682601,0.11288943,96875.0,96865.0,0.001]
[1735294682805,0.21514961,96875.0,96865.0,0.004]
[1735294683012,0.36916739,96875.0,96865.0,0.004]
[1735294683401,0.40016739,96875.0,96865.0,0.004]
[1735294683608,0.40016739,96875.0,96865.0,0.003]
[1735294683810,0.40016739,96875.0,96865.0,0.004]
[1735294684007,0.00767963,96870.0,96865.0,0.004]
[1735294684909,0.40084739,96875.0,96865.0,0.004]
[1735294685110,0.00767963,96868.0,96865.0,0.003]
[1735294685311,0.00767963,96868.0,96865.0,0.004]
[1735294686107,0.00767963,96867.0,96866.0,1.53]
[1735294686421,0.15401778,96877.0,96866.0,1.53]
[1735294686919,0.16454155,96877.0,96866.0,1.53]
[1735294687322,0.16454155,96877.0,96866.0,1.533]
[1735294687712,0.01052377,96877.0,96866.0,1.533]
[1735294687918,0.10226018,96880.0,96866.0,1.533]
[1735294688318,0.10226018,96880.0,96866.0,1.534]
[1735294688517,0.11266497,96880.0,96866.0,1.534]
[1735294689305,0.11266497,96880.0,96866.0,0.034]
[1735294690209,0.09247773,96877.0,96866.0,0.034]
[1735294690411,0.09247773,96877.0,96866.0,0.031]
[1735294690610,0.09247773,96877.0,96866.0,0.034]
[1735294691320,0.09247773,96875.0,96866.0,0.034]
[1735294691913,0.09247773,96875.0,96867.0,1.5]
[1735294692109,0.10226018,96880.0,96867.0,1.5]
[1735294693319,0.10226018,96880.0,96866.0,0.034]
[1735294693523,0.10226018,96880.0,96875.0,0.24652816]
[1735294694728,0.10226018,96880.0,96867.0,0.30964951]
[1735294694729,0.10226018,96880.0,96869.0,0.24652816]
[1735294695220,0.10226018,96880.0,96870.0,0.0629]
[1735294695619,0.10426018,96880.0,96870.0,0.0629]
[1735294695819,0.10426018,96880.0,96870.0,0.30942816]
[1735294695820,0.10526018,96880.0,96870.0,0.30942816]
[1735294696319,0.10326018,96880.0,96870.0,0.30942816]
[1735294696623,0.10226018,96880.0,96870.0,0.30942816]
[1735294696819,0.10226018,96880.0,96870.0,0.31042816]
[1735294698223,0.10226018,96880.0,96875.0,0.24652816]
[1735294699625,0.10326018,96880.0,96875.0,0.24652816]
[1735294700328,0.10426018,96880.0,96875.0,0.24652816]
[1735294700729,0.15401778,96897.0,96875.0,0.54652816]
[1735294700930,0.12362766,96891.0,96880.0,0.10226018]
[1735294701228,0.18413672,96910.0,96890.0,1.5]
[1735294701430,0.18345672,96910.0,96890.0,1.5]
[1735294701615,0.2857169,96910.0,96890.0,1.8]
[1735294702423,0.10326018,96910.0,96907.0,0.24652816]
[1735294702623,0.001,96910.0,96907.0,0.24652816]
[1735294703125,0.10226018,96917.0,96907.0,0.24652816]
[1735294703831,0.10226018,96917.0,96909.0,0.24652816]
[1735294704027,0.10226018,96919.0,96909.0,0.24652816]
[1735294704532,0.005,96910.0,96909.0,0.24652816]
[1735294705031,0.001,96910.0,96909.0,0.24652816]
[1735294705232,0.10926018,96919.0,96909.0,0.24652816]
[1735294705436,0.10926018,96919.0,96891.0,0.095]
[1735294705628,0.10226018,96901.0,96891.0,0.095]
[1735294707731,0.10226018,96901.0,96891.0,0.097]
[1735294707936,0.10226018,96901.0,96891.0,0.0357]
[1735294709031,0.10226018,96901.0,96891.0,0.0337]
[1735294709338,0.10226018,96901.0,96895.0,0.051666]
[1735294710038,0.10226018,96901.0,96896.0,0.051666]
[1735294710242,0.10226018,96901.0,96891.0,0.0357]
[1735294710423,0.051662,96903.0,96897.0,1.5]
[1735294710628,0.051662,96903.0,96901.0,0.051663]
[1735294711733,0.051662,96903.0,96901.0,0.052663]
[1735294712135,0.051662,96903.0,96901.0,0.054663]
[1735294712528,0.01037482,96907.0,96897.0,1.50052]
[1735294712737,0.05167,96889.0,96887.0,0.24652816]
[1735294713239,0.1006,96888.0,96887.0,0.24652816]
[1735294713640,0.051666,96895.0,96887.0,0.24652816]
[1735294714438,0.20452036,96900.0,96884.0,0.051672]
[1735294714639,0.051669,96891.0,96884.0,0.051672]
[1735294714840,0.051669,96891.0,96887.0,0.003]
[1735294715341,0.051669,96891.0,96887.0,0.001]
[1735294715543,0.05167,96889.0,96879.0,0.18501143]
[1735294715744,0.20452036,96900.0,96884.0,0.001]
[1735294716237,0.051672,96885.0,96884.0,0.001]
[1735294716437,0.051676,96877.0,96876.0,0.00056]
[1735294716742,0.051676,96877.0,96875.0,0.24652816]
[1735294716943,0.0335,96884.0,96868.0,0.24652816]
[1735294716944,0.051678,96874.0,96868.0,0.24652816]
[1735294717131,0.0638,96876.0,96868.0,0.24652816]
[1735294717336,0.051679,96871.0,96868.0,0.24652816]
[1735294718037,0.051679,96871.0,96868.0,0.24752816]
[1735294718240,0.051679,96871.0,96868.0,0.001]
[1735294718644,0.051679,96871.0,96868.0,0.003]
[1735294718941,0.05168,96869.0,96868.0,0.003]
[1735294720546,0.05168,96869.0,96868.0,0.001]
[1735294720744,0.05168,96869.0,96868.0,0.003]